[Event "Championnat d'Europe Rapide"]
[Date "2024.12.07"]
[White "Kuzubov, Yuriy"]
[Black "Babrauskas, Darius"]
[WhiteElo "2595"]
[BlackElo "2063"]
[Round "1.21"]
[Result "1-0"]
[TimeControl "900+10"]

1. d4 {[%emt 00:00:02] [%clk 00:15:17]} d5 {[%emt 00:00:46] [%clk 00:14:36]} 2.
c4 {[%emt 00:00:06] [%clk 00:15:20]} c6 {[%emt 00:00:09] [%clk 00:14:37]} 3. Nf3
{[%emt 00:00:04] [%clk 00:15:25]} Nf6 {[%emt 00:00:02] [%clk 00:14:46]} 4. Nc3
{[%emt 00:00:02] [%clk 00:15:33]} e6 {[%emt 00:00:12] [%clk 00:14:44]} 5. e3
{[%emt 00:00:10] [%clk 00:15:32]} Nbd7 {[%emt 00:00:13] [%clk 00:14:41]} 6. Be2
{[%emt 00:00:04] [%clk 00:15:38]} dxc4 {[%emt 00:00:22] [%clk 00:14:30]} 7. a4
{[%emt 00:00:02] [%clk 00:15:46]} Bd6 {[%emt 00:02:38] [%clk 00:12:02]} 8. Nd2
{[%emt 00:00:02] [%clk 00:15:53]} e5 {[%emt 00:01:51] [%clk 00:10:22]} 9. Nxc4
{[%emt 00:00:03] [%clk 00:16:00]} Bc7 {[%emt 00:00:01] [%clk 00:10:31]} 10. b3
{[%emt 00:00:40] [%clk 00:15:30]} O-O {[%emt 00:01:58] [%clk 00:08:43]} 11. Ba3
{[%emt 00:00:02] [%clk 00:15:38]} Re8 {[%emt 00:00:09] [%clk 00:08:43]} 12. Nd6
{[%emt 00:00:02] [%clk 00:15:46]} Bxd6 {[%emt 00:01:34] [%clk 00:07:20]} 13.
Bxd6 {[%emt 00:00:02] [%clk 00:15:53]} exd4 {[%emt 00:02:43] [%clk 00:04:48]}
14. Qxd4 {[%emt 00:00:02] [%clk 00:16:01]} Nf8 {[%emt 00:00:42] [%clk 00:04:16]}
15. Be5 {[%emt 00:00:35] [%clk 00:15:35]} Qxd4 {[%emt 00:00:26] [%clk 00:04:00]}
16. Bxd4 {[%emt 00:00:02] [%clk 00:15:43]} Ne4 {[%emt 00:01:17] [%clk 00:02:53]}
17. Nxe4 {[%emt 00:00:26] [%clk 00:15:27]} Rxe4 {[%emt 00:00:02] [%clk
00:03:02]} 18. O-O {[%emt 00:00:02] [%clk 00:15:34]} Re8 {[%emt 00:00:04] [%clk
00:03:09]} 19. b4 {[%emt 00:00:10] [%clk 00:15:34]} Be6 {[%emt 00:00:27] [%clk
00:02:51]} 20. Rfc1 {[%emt 00:00:14] [%clk 00:15:31]} Nd7 {[%emt 00:00:43] [%clk
00:02:18]} 21. a5 {[%emt 00:00:24] [%clk 00:15:17]} a6 {[%emt 00:00:05] [%clk
00:02:23]} 22. Rd1 {[%emt 00:00:07] [%clk 00:15:19]} Rac8 {[%emt 00:00:24] [%clk
00:02:10]} 23. Rac1 {[%emt 00:00:07] [%clk 00:15:21]} f6 {[%emt 00:00:10] [%clk
00:02:11]} 24. f3 {[%emt 00:00:05] [%clk 00:15:26]} Nf8 {[%emt 00:00:33] [%clk
00:01:48]} 25. Kf2 {[%emt 00:00:04] [%clk 00:15:31]} Kf7 {[%emt 00:00:03] [%clk
00:01:56]} 26. g4 {[%emt 00:00:04] [%clk 00:15:36]} Bb3 {[%emt 00:00:06] [%clk
00:01:59]} 27. Rd3 {[%emt 00:00:19] [%clk 00:15:29]} Be6 {[%emt 00:00:34] [%clk
00:01:35]} 28. h4 {[%emt 00:00:13] [%clk 00:15:25]} Red8 {[%emt 00:00:30] [%clk
00:01:16]} 29. Bb6 {[%emt 00:00:06] [%clk 00:15:29]} Rxd3 {[%emt 00:00:07] [%clk
00:01:19]} 30. Bxd3 {[%emt 00:00:01] [%clk 00:15:38]} Nd7 {[%emt 00:00:06] [%clk
00:01:23]} 31. Bd4 {[%emt 00:00:02] [%clk 00:15:46]} g6 {[%emt 00:00:05] [%clk
00:01:28]} 32. g5 {[%emt 00:00:32] [%clk 00:15:23]} Ne5 {[%emt 00:00:09] [%clk
00:01:29]} 33. Be2 {[%emt 00:00:07] [%clk 00:15:26]} Nd7 {[%emt 00:00:14]} 34.
e4 {[%emt 00:00:23] [%clk 00:15:11]} Rd8 {[%emt 00:00:06] [%clk 00:01:32]} 35.
Ke3 {[%emt 00:00:02] [%clk 00:15:19]} Bb3 {[%emt 00:00:17] [%clk 00:01:24]} 36.
Rh1 {[%emt 00:00:16] [%clk 00:15:13]} Re8 {[%emt 00:00:52] [%clk 00:00:42]} 37.
Bd3 {[%emt 00:00:43] [%clk 00:14:40]} f5 {[%emt 00:00:15] [%clk 00:00:38]} 38.
h5 {[%emt 00:00:20] [%clk 00:14:30]} Ne5 {[%emt 00:00:29] [%clk 00:00:20]} 39.
hxg6+ {[%emt 00:00:08] [%clk 00:14:31]} hxg6 {[%emt 00:00:14] [%clk 00:00:15]}
40. Bxe5 {[%emt 00:00:16] [%clk 00:14:25]} Rxe5 {[%emt 00:00:03] [%clk
00:00:23]} 41. f4 {[%emt 00:00:23] [%clk 00:14:12]} Re8 {[%emt 00:00:06] [%clk
00:00:27]} 42. Rh7+ {[%emt 00:00:03] [%clk 00:14:19]} Kg8 {[%emt 00:00:01] [%clk
00:00:36]} 43. Rxb7 {[%emt 00:00:03] [%clk 00:14:27]} fxe4 {[%emt 00:00:02]
[%clk 00:00:43]} 44. Bxa6 {[%emt 00:00:02] [%clk 00:14:35]} Rd8 {[%emt 00:00:16]
[%clk 00:00:37]} 45. Rc7 {[%emt 00:00:09] [%clk 00:14:36]} Rd6 {[%emt 00:00:13]
[%clk 00:00:35]} 46. Kxe4 {[%emt 00:00:07] [%clk 00:14:38]} Bc2+ {[%emt
00:00:04] [%clk 00:00:41]} 47. Ke3 {[%emt 00:00:05] [%clk 00:14:43]} Bf5 {[%emt
00:00:06] [%clk 00:00:45]} 48. Bc4+ {[%emt 00:00:03] [%clk 00:14:50]} Kf8 {[%emt
00:00:08] [%clk 00:00:48]} 49. a6 {[%emt 00:00:01] [%clk 00:14:59]} 1-0

[Site "Europe Echecs"]

[Event "Championnat d'Europe Rapide"]
[Date "2024.12.07"]
[White "Quparadze, Giga"]
[Black "Serifovic, Faruk"]
[WhiteElo "2537"]
[BlackElo "1950"]
[Round "1.23"]
[Result "1-0"]
[TimeControl "900+10"]

1. e4 {[%emt 00:53:13] [%clk 00:15:18]} e6 {[%emt 00:00:04] [%clk 00:15:16]} 2.
d4 {[%emt 00:00:04] [%clk 00:15:24]} d5 {[%emt 00:00:05] [%clk 00:15:21]} 3. Nd2
{[%emt 00:00:02] [%clk 00:15:31]} dxe4 {[%emt 00:00:04] [%clk 00:15:27]} 4. Nxe4
{[%emt 00:00:01] [%clk 00:15:39]} Bd7 {[%emt 00:00:05] [%clk 00:15:33]} 5. Nf3
{[%emt 00:00:03] [%clk 00:15:45]} Bc6 {[%emt 00:00:04] [%clk 00:15:39]} 6. Bd3
{[%emt 00:00:02] [%clk 00:15:54]} Nd7 {[%emt 00:00:04] [%clk 00:15:45]} 7. O-O
{[%emt 00:00:03] [%clk 00:16:01]} Ngf6 {[%emt 00:00:05] [%clk 00:15:51]} 8. Ng3
{[%emt 00:00:02] [%clk 00:16:08]} Be7 {[%emt 00:00:05] [%clk 00:15:56]} 9. Re1
{[%emt 00:00:05] [%clk 00:16:12]} Bxf3 {[%emt 00:00:06] [%clk 00:16:01]} 10.
Qxf3 {[%emt 00:00:02] [%clk 00:16:20]} c6 {[%emt 00:00:04] [%clk 00:16:07]} 11.
c3 {[%emt 00:00:19] [%clk 00:16:11]} O-O {[%emt 00:00:06] [%clk 00:16:11]} 12.
a4 {[%emt 00:00:03] [%clk 00:16:19]} Re8 {[%emt 00:00:23] [%clk 00:15:57]} 13.
a5 {[%emt 00:00:02] [%clk 00:16:27]} a6 {[%emt 00:00:03] [%clk 00:16:04]} 14. b4
{[%emt 00:00:20] [%clk 00:16:17]} Nf8 {[%emt 00:00:07] [%clk 00:16:08]} 15. Ne4
{[%emt 00:00:13] [%clk 00:16:14]} Ng6 {[%emt 00:00:25] [%clk 00:15:52]} 16. Ng5
{[%emt 00:00:17] [%clk 00:16:07]} Qd5 {[%emt 00:01:32] [%clk 00:14:30]} 17. Qh3
{[%emt 00:00:16] [%clk 00:16:00]} Nf8 {[%emt 00:01:20] [%clk 00:13:22]} 18. Bf4
{[%emt 00:00:19] [%clk 00:15:49]} Ng6 {[%emt 00:00:23] [%clk 00:13:10]} 19. Be5
{[%emt 00:00:10] [%clk 00:15:49]} h6 {[%emt 00:00:49] [%clk 00:12:31]} 20. Nxe6
{[%emt 00:00:18] [%clk 00:15:40]} Nxe5 {[%emt 00:00:27] [%clk 00:12:15]} 21.
Rxe5 {[%emt 00:00:32] [%clk 00:15:18]} Qd7 {[%emt 00:00:17] [%clk 00:12:09]} 22.
Bf5 {[%emt 00:00:22] [%clk 00:15:06]} Qd6 {[%emt 00:00:21] [%clk 00:11:57]} 23.
Nc5 {[%emt 00:00:34] [%clk 00:14:42]} Bd8 {[%emt 00:00:29] [%clk 00:11:38]} 24.
Nxb7 {[%emt 00:00:16] [%clk 00:14:36]} Qc7 {[%emt 00:00:09] [%clk 00:11:39]} 25.
Rxe8+ {[%emt 00:00:05] [%clk 00:14:40]} Nxe8 {[%emt 00:00:05] [%clk 00:11:45]}
26. Nxd8 {[%emt 00:00:03] [%clk 00:14:48]} Rxd8 {[%emt 00:00:05] [%clk
00:11:50]} 27. Bd3 {[%emt 00:00:02] [%clk 00:14:55]} Nf6 {[%emt 00:00:08] [%clk
00:11:52]} 28. Bxa6 {[%emt 00:00:05] [%clk 00:15:01]} Re8 {[%emt 00:00:06] [%clk
00:11:55]} 29. Bf1 {[%emt 00:00:03] [%clk 00:15:08]} h5 {[%emt 00:00:18] [%clk
00:11:47]} 30. a6 {[%emt 00:00:02] [%clk 00:15:16]} Qb6 {[%emt 00:00:04] [%clk
00:11:54]} 31. Qf3 {[%emt 00:00:06] [%clk 00:15:19]} Ra8 {[%emt 00:00:05] [%clk
00:11:59]} 32. b5 {[%emt 00:00:04] [%clk 00:15:25]} Nd5 {[%emt 00:00:09] [%clk
00:12:00]} 33. c4 {[%emt 00:00:11] [%clk 00:15:24]} Qxd4 {[%emt 00:00:09] [%clk
00:12:01]} 34. Rd1 {[%emt 00:00:01] [%clk 00:15:32]} Qc3 {[%emt 00:00:13] [%clk
00:11:59]} 35. cxd5 {[%emt 00:00:03] [%clk 00:15:39]} Qxf3 {[%emt 00:00:04]
[%clk 00:12:05]} 36. gxf3 {[%emt 00:00:02] [%clk 00:15:48]} cxb5 {[%emt
00:00:02] [%clk 00:12:13]} 37. Bxb5 {[%emt 00:00:02] [%clk 00:15:55]} 1-0

[Site "Europe Echecs"]

[Event "Championnat d'Europe Rapide"]
[Date "2024.12.07"]
[White "Karaivanova, Petya"]
[Black "Dardha, Daniel"]
[WhiteElo "1939"]
[BlackElo "2639"]
[Round "1.24"]
[Result "1/2-1/2"]
[TimeControl "900+10"]

1. e4 {[%emt 00:00:03] [%clk 00:15:18]} c5 {[%clk 00:15:19]} 2. Nf3 {[%emt
00:00:03] [%clk 00:15:26]} Nc6 {[%emt 00:00:01] [%clk 00:15:28]} 3. d4 {[%emt
00:00:04] [%clk 00:15:34]} cxd4 {[%clk 00:15:36]} 4. Nxd4 {[%emt 00:00:02] [%clk
00:15:42]} Nf6 {[%emt 00:00:05] [%clk 00:15:41]} 5. Nc3 {[%emt 00:00:04] [%clk
00:15:48]} d6 {[%emt 00:00:03] [%clk 00:15:49]} 6. Bg5 {[%emt 00:00:23] [%clk
00:15:34]} e6 {[%emt 00:00:02] [%clk 00:15:56]} 7. Qd2 {[%emt 00:00:06] [%clk
00:15:39]} a6 {[%emt 00:00:02] [%clk 00:16:05]} 8. h4 {[%emt 00:00:11] [%clk
00:15:38]} Bd7 {[%emt 00:00:06] [%clk 00:16:09]} 9. f3 {[%emt 00:00:10] [%clk
00:15:38]} Qb6 {[%emt 00:00:23] [%clk 00:15:56]} 10. Nxc6 {[%emt 00:02:16] [%clk
00:13:31]} bxc6 {[%emt 00:01:49] [%clk 00:14:17]} 11. O-O-O {[%emt 00:00:10]
[%clk 00:13:32]} Rb8 {[%emt 00:00:03] [%clk 00:14:24]} 12. b3 {[%emt 00:03:00]
[%clk 00:10:42]} Qa5 {[%emt 00:02:09] [%clk 00:12:24]} 13. Na4 {[%emt 00:02:02]
[%clk 00:08:50]} Qxd2+ {[%emt 00:00:12] [%clk 00:12:22]} 14. Bxd2 {[%emt
00:00:03] [%clk 00:08:57]} e5 {[%emt 00:01:46] [%clk 00:10:46]} 15. Bxa6 {[%emt
00:02:29] [%clk 00:06:39]} d5 {[%emt 00:00:02] [%clk 00:10:54]} 16. Bd3 {[%emt
00:01:22] [%clk 00:05:27]} Ba3+ {[%emt 00:01:10] [%clk 00:09:53]} 17. Nb2 {[%emt
00:01:11] [%clk 00:04:26]} O-O {[%emt 00:00:03] [%clk 00:10:00]} 18. c3 {[%emt
00:01:20] [%clk 00:03:16]} Be6 {[%emt 00:00:15] [%clk 00:09:55]} 19. Kc2 {[%emt
00:00:31] [%clk 00:02:55]} Nd7 {[%emt 00:00:01] [%clk 00:10:04]} 20. Na4 {[%emt
00:01:01] [%clk 00:02:05]} Ra8 {[%emt 00:00:20] [%clk 00:09:53]} 21. Bc1 {[%emt
00:00:43] [%clk 00:01:33]} Bd6 {[%emt 00:00:18] [%clk 00:09:45]} 22. Rd2 {[%emt
00:00:50] [%clk 00:00:54]} h5 {[%emt 00:00:37] [%clk 00:09:18]} 23. Kd1 {[%emt
00:00:12] [%clk 00:00:52]} g6 {[%emt 00:00:01] [%clk 00:09:27]} 24. Ke1 {[%emt
00:00:13] [%clk 00:00:49]} f5 {[%emt 00:00:02] [%clk 00:09:34]} 25. exd5 {[%emt
00:00:13] [%clk 00:00:46]} cxd5 {[%emt 00:00:03] [%clk 00:09:42]} 26. Bb5 {[%emt
00:00:08] [%clk 00:00:47]} Nf6 {[%emt 00:00:08] [%clk 00:09:44]} 27. Kf2 {[%emt
00:00:32] [%clk 00:00:25]} Rab8 {[%emt 00:00:15] [%clk 00:09:39]} 28. Be2 {[%emt
00:00:15] [%clk 00:00:20]} e4 {[%emt 00:00:02] [%clk 00:09:47]} 29. Rhd1 {[%emt
00:00:08] [%clk 00:00:22]} Bh2 {[%emt 00:00:27] [%clk 00:09:29]} 30. Nc5 {[%emt
00:00:15] [%clk 00:00:18]} Bf7 {[%emt 00:00:33] [%clk 00:09:06]} 31. Rb2 {[%emt
00:00:07] [%clk 00:00:22]} Be5 {[%emt 00:00:16] [%clk 00:08:59]} 32. Rc2 {[%emt
00:00:02] [%clk 00:00:31]} Rfd8 {[%emt 00:01:36] [%clk 00:07:32]} 33. Be3 {[%emt
00:00:16] [%clk 00:00:26]} f4 {[%emt 00:00:23] [%clk 00:07:19]} 34. Bd4 {[%emt
00:00:04] [%clk 00:00:31]} Re8 {[%emt 00:00:15] [%clk 00:07:14]} 35. Kg1 {[%emt
00:00:10] [%clk 00:00:31]} Bxd4+ {[%emt 00:00:15] [%clk 00:07:09]} 36. cxd4
{[%emt 00:00:01] [%clk 00:00:40]} Re7 {[%emt 00:00:18] [%clk 00:07:01]} 37. a4
{[%emt 00:00:05] [%clk 00:00:45]} Ne8 {[%emt 00:00:16] [%clk 00:06:54]} 38. a5
{[%emt 00:00:04] [%clk 00:00:52]} Nd6 {[%emt 00:00:01] [%clk 00:07:03]} 39. a6
{[%emt 00:00:14] [%clk 00:00:48]} Ra7 {[%emt 00:00:05] [%clk 00:07:08]} 40. Rb1
{[%emt 00:00:12] [%clk 00:00:46]} Rb4 {[%emt 00:00:05] [%clk 00:07:14]} 41. Kh2
{[%emt 00:00:36] [%clk 00:00:20]} Kg7 {[%emt 00:00:24] [%clk 00:07:00]} 42. Ra2
{[%clk 00:00:29]} Rxd4 {[%emt 00:01:06] [%clk 00:06:03]} 43. b4 {[%emt 00:00:02]
[%clk 00:00:38]} Nc8 {[%emt 00:01:34] [%clk 00:04:38]} 44. Na4 {[%emt 00:00:09]
[%clk 00:00:39]} exf3 {[%emt 00:00:35] [%clk 00:04:13]} 45. gxf3 {[%emt
00:00:01] [%clk 00:00:48]} Re7 {[%emt 00:00:01] [%clk 00:04:22]} 46. b5 {[%emt
00:00:08] [%clk 00:00:51]} Be8 {[%emt 00:01:28] [%clk 00:03:04]} 47. b6 {[%emt
00:00:27] [%clk 00:00:34]} Rxa4 {[%emt 00:00:03] [%clk 00:03:10]} 48. Rxa4
{[%emt 00:00:05] [%clk 00:00:40]} Rxe2+ {[%emt 00:00:02] [%clk 00:03:18]} 49.
Kg1 {[%emt 00:00:01] [%clk 00:00:49]} Nxb6 {[%emt 00:00:01] [%clk 00:03:27]} 50.
Rxf4 {[%emt 00:00:39] [%clk 00:00:19]} Re6 {[%emt 00:02:13] [%clk 00:01:24]} 51.
a7 {[%emt 00:00:10] [%clk 00:00:20]} Na8 {[%clk 00:01:33]} 52. Rb7+ {[%emt
00:00:12] [%clk 00:00:17]} Kh6 {[%emt 00:00:01] [%clk 00:01:41]} 53. Rb8 {[%emt
00:00:02] [%clk 00:00:26]} Bc6 {[%emt 00:00:04] [%clk 00:01:47]} 54. Rff8 {[%emt
00:00:19] [%clk 00:00:18]} Kg7 {[%emt 00:00:53] [%clk 00:01:04]} 55. Rxa8 {[%emt
00:00:13] [%clk 00:00:15]} Bxa8 {[%emt 00:00:01] [%clk 00:01:13]} 56. Rxa8
{[%emt 00:00:02] [%clk 00:00:23]} Ra6 {[%emt 00:00:01] [%clk 00:01:21]} 57. Kf2
{[%emt 00:00:04] [%clk 00:00:29]} Ra3 {[%emt 00:00:10] [%clk 00:01:21]} 58. Ke2
{[%emt 00:00:02] [%clk 00:00:37]} d4 {[%emt 00:00:01] [%clk 00:01:30]} 59. f4
{[%emt 00:00:19] [%clk 00:00:28]} Kh7 {[%emt 00:00:07] [%clk 00:01:33]} 60. Kd2
{[%emt 00:00:10] [%clk 00:00:28]} d3 {[%emt 00:00:02] [%clk 00:01:41]} 61. Ke3
{[%emt 00:00:09] [%clk 00:00:29]} Kg7 {[%emt 00:00:01] [%clk 00:01:50]} 62. Kd2
{[%emt 00:00:02] [%clk 00:00:38]} Kh7 {[%emt 00:00:01] [%clk 00:01:58]} 1/2-1/2

[Site "Europe Echecs"]

[Event "Championnat d'Europe Rapide"]
[Date "2024.12.07"]
[White "Laurusas, Tomas"]
[Black "Viliamas, Dovydas"]
[WhiteElo "2578"]
[BlackElo "1909"]
[Round "1.25"]
[Result "1-0"]
[TimeControl "900+10"]

1. c4 {[%emt 00:53:12] [%clk 00:15:19]} e6 {[%emt 00:00:01] [%clk 00:15:18]} 2.
g3 {[%emt 00:00:13] [%clk 00:15:17]} d5 {[%emt 00:00:02] [%clk 00:15:25]} 3. Bg2
{[%emt 00:00:01] [%clk 00:15:25]} Nf6 {[%emt 00:00:07] [%clk 00:15:28]} 4. d4
{[%emt 00:00:02] [%clk 00:15:33]} Bd6 {[%emt 00:01:34] [%clk 00:14:05]} 5. Nd2
{[%emt 00:00:51] [%clk 00:14:51]} O-O {[%emt 00:02:12] [%clk 00:12:03]} 6. Ngf3
{[%emt 00:00:03] [%clk 00:14:59]} c5 {[%emt 00:00:35] [%clk 00:11:38]} 7. cxd5
{[%emt 00:00:03] [%clk 00:15:06]} exd5 {[%emt 00:00:04] [%clk 00:11:44]} 8. dxc5
{[%emt 00:00:04] [%clk 00:15:12]} Bxc5 {[%emt 00:00:01] [%clk 00:11:52]} 9. O-O
{[%emt 00:00:02] [%clk 00:15:19]} Nc6 {[%emt 00:00:21] [%clk 00:11:43]} 10. Nb3
{[%emt 00:01:43] [%clk 00:13:46]} Ne4 {[%emt 00:01:37] [%clk 00:10:16]} 11. Nxc5
{[%emt 00:00:03] [%clk 00:13:54]} Nxc5 {[%emt 00:00:01] [%clk 00:10:24]} 12. Bg5
{[%emt 00:00:12] [%clk 00:13:52]} Qd7 {[%emt 00:01:53] [%clk 00:08:42]} 13. Rc1
{[%emt 00:00:09] [%clk 00:13:52]} Ne6 {[%emt 00:00:15] [%clk 00:08:36]} 14. Bd2
{[%emt 00:00:09] [%clk 00:13:54]} d4 {[%emt 00:00:32] [%clk 00:08:14]} 15. Ne1
{[%emt 00:00:28] [%clk 00:13:35]} Qd6 {[%emt 00:00:31] [%clk 00:07:53]} 16. Nd3
{[%emt 00:00:05] [%clk 00:13:40]} Rd8 {[%emt 00:00:06] [%clk 00:07:58]} 17. Qb3
{[%emt 00:00:23] [%clk 00:13:26]} a5 {[%emt 00:01:46] [%clk 00:06:23]} 18. a4
{[%emt 00:00:37] [%clk 00:12:58]} h6 {[%emt 00:00:56] [%clk 00:05:37]} 19. Rfe1
{[%emt 00:00:12] [%clk 00:12:57]} Ra6 {[%emt 00:01:37] [%clk 00:04:10]} 20. Rc2
{[%emt 00:01:46] [%clk 00:11:20]} Ne7 {[%emt 00:00:07] [%clk 00:04:14]} 21. Rec1
{[%emt 00:00:14] [%clk 00:11:16]} b6 {[%emt 00:00:08] [%clk 00:04:16]} 22. Rxc8
{[%emt 00:00:45] [%clk 00:10:41]} Nxc8 {[%emt 00:00:48] [%clk 00:03:38]} 23. Bb7
{[%emt 00:00:02] [%clk 00:10:49]} Nc5 {[%emt 00:00:11] [%clk 00:03:37]} 24. Nxc5
{[%emt 00:00:58] [%clk 00:10:00]} bxc5 {[%emt 00:00:02] [%clk 00:03:45]} 25.
Bxa6 {[%emt 00:00:18] [%clk 00:09:53]} Qxa6 {[%emt 00:00:02] [%clk 00:03:53]}
26. Qb5 {[%emt 00:01:09] [%clk 00:08:54]} Qxb5 {[%emt 00:02:21] [%clk 00:01:41]}
27. axb5 {[%emt 00:00:01] [%clk 00:09:03]} Rd5 {[%emt 00:00:02] [%clk 00:01:51]}
28. Bxa5 {[%emt 00:00:24] [%clk 00:08:49]} Nd6 {[%emt 00:00:01] [%clk 00:01:59]}
29. Bc7 {[%emt 00:03:50] [%clk 00:05:09]} Nxb5 {[%emt 00:01:51] [%clk 00:00:19]}
30. Bb6 {[%emt 00:00:01] [%clk 00:05:17]} c4 {[%emt 00:00:17] [%clk 00:00:11]}
31. Rxc4 {[%emt 00:00:05] [%clk 00:05:22]} d3 {[%emt 00:00:05] [%clk 00:00:16]}
32. exd3 {[%emt 00:00:10] [%clk 00:05:22]} Rxd3 {[%emt 00:00:02] [%clk
00:00:25]} 33. Rb4 {[%emt 00:00:30] [%clk 00:05:02]} Rd5 {[%emt 00:00:21] [%clk
00:00:15]} 34. h4 {[%emt 00:00:24] [%clk 00:04:47]} Kf8 {[%emt 00:00:12] [%clk
00:00:13]} 35. Kf1 {[%emt 00:00:19] [%clk 00:04:37]} h5 {[%emt 00:00:08] [%clk
00:00:16]} 36. Ke2 {[%emt 00:00:17] [%clk 00:04:29]} Ke7 {[%emt 00:00:01] [%clk
00:00:25]} 37. Re4+ {[%emt 00:00:12] [%clk 00:04:28]} Kd7 {[%emt 00:00:15] [%clk
00:00:20]} 38. Be3 {[%emt 00:00:06] [%clk 00:04:31]} g6 {[%emt 00:00:07] [%clk
00:00:24]} 39. Rf4 {[%emt 00:00:06] [%clk 00:04:35]} Ke6 {[%emt 00:00:06] [%clk
00:00:29]} 40. Rc4 {[%emt 00:00:04] [%clk 00:04:40]} Kd7 {[%emt 00:00:15] [%clk
00:00:25]} 41. Ra4 {[%emt 00:00:13] [%clk 00:04:36]} Ke6 {[%emt 00:00:18] [%clk
00:00:17]} 42. Ra6+ {[%emt 00:00:03] [%clk 00:04:43]} Kf5 {[%emt 00:00:01] [%clk
00:00:25]} 43. Ra4 {[%emt 00:00:26] [%clk 00:04:27]} Ke6 {[%emt 00:00:02] [%clk
00:00:34]} 44. Rf4 {[%emt 00:00:06] [%clk 00:04:31]} Ke7 {[%emt 00:00:12] [%clk
00:00:32]} 45. Ke1 {[%emt 00:00:46] [%clk 00:03:55]} Ke6 {[%emt 00:00:02] [%clk
00:00:41]} 46. Rc4 {[%emt 00:00:01] [%clk 00:04:03]} Kd6 {[%emt 00:00:35] [%clk
00:00:16]} 47. Rc1 {[%emt 00:00:18] [%clk 00:03:55]} Kd7 {[%emt 00:00:15] [%clk
00:00:11]} 48. Rd1 {[%emt 00:00:04] [%clk 00:04:01]} Ke6 {[%emt 00:00:02] [%clk
00:00:19]} 49. Rxd5 {[%emt 00:00:09] [%clk 00:04:02]} Kxd5 {[%emt 00:00:01]
[%clk 00:00:28]} 50. Kd2 {[%emt 00:00:04] [%clk 00:04:08]} Kc4 {[%emt 00:00:12]
[%clk 00:00:25]} 51. Kc2 {[%emt 00:00:01] [%clk 00:04:17]} 1-0

[Site "Europe Echecs"]

[Event "Championnat d'Europe Rapide"]
[Date "2024.12.07"]
[White "Kosmidis, Ioannis"]
[Black "Bernadskiy, Vitaliy"]
[WhiteElo "2104"]
[BlackElo "2546"]
[Round "1.26"]
[Result "0-1"]
[TimeControl "900+10"]

1. Nf3 {[%clk 00:15:17]} Nf6 {[%emt 00:00:03] [%clk 00:15:18]} 2. g3 {[%emt
00:00:04] [%clk 00:15:24]} g6 {[%emt 00:00:03] [%clk 00:15:24]} 3. b3 {[%emt
00:00:01] [%clk 00:15:33]} d6 {[%emt 00:00:03] [%clk 00:15:32]} 4. Bb2 {[%emt
00:00:01] [%clk 00:15:41]} e5 {[%emt 00:00:02] [%clk 00:15:41]} 5. d3 {[%emt
00:00:54] [%clk 00:14:57]} Bg7 {[%emt 00:00:01] [%clk 00:15:49]} 6. Bg2 {[%emt
00:00:02] [%clk 00:15:05]} O-O {[%emt 00:00:04] [%clk 00:15:56]} 7. c4 {[%emt
00:00:06] [%clk 00:15:09]} Nc6 {[%emt 00:00:05] [%clk 00:16:00]} 8. Nc3 {[%emt
00:00:09] [%clk 00:15:10]} Nh5 {[%emt 00:00:14] [%clk 00:15:55]} 9. e3 {[%emt
00:00:20] [%clk 00:15:00]} f5 {[%emt 00:00:05] [%clk 00:16:01]} 10. Nd2 {[%emt
00:00:25] [%clk 00:14:46]} f4 {[%emt 00:00:13] [%clk 00:15:58]} 11. O-O {[%emt
00:00:15] [%clk 00:14:41]} Ne7 {[%emt 00:00:33] [%clk 00:15:34]} 12. Nd5 {[%emt
00:00:20] [%clk 00:14:31]} Nxd5 {[%emt 00:00:25] [%clk 00:15:19]} 13. cxd5
{[%emt 00:00:18] [%clk 00:14:24]} Nf6 {[%emt 00:00:06] [%clk 00:15:22]} 14. Rc1
{[%emt 00:01:39] [%clk 00:12:55]} Bg4 {[%emt 00:00:05] [%clk 00:15:27]} 15. Qc2
{[%emt 00:00:40] [%clk 00:12:25]} Rc8 {[%emt 00:00:01] [%clk 00:15:36]} 16. exf4
{[%emt 00:00:32] [%clk 00:12:03]} exf4 {[%emt 00:00:02] [%clk 00:15:44]} 17. Qc4
{[%emt 00:00:21] [%clk 00:11:53]} Qd7 {[%emt 00:00:49] [%clk 00:15:04]} 18. Qxf4
{[%emt 00:00:30] [%clk 00:11:32]} Nh5 {[%emt 00:00:09] [%clk 00:15:05]} 19. Qe3
{[%emt 00:00:47] [%clk 00:10:56]} Bxb2 {[%emt 00:00:07] [%clk 00:15:08]} 20. Rc2
{[%emt 00:00:10] [%clk 00:10:56]} Bg7 {[%emt 00:00:03] [%clk 00:15:15]} 21. Qxa7
{[%emt 00:00:16] [%clk 00:10:51]} Be2 {[%emt 00:00:08] [%clk 00:15:16]} 22. Re1
{[%emt 00:00:44] [%clk 00:10:17]} Bxd3 {[%emt 00:00:02] [%clk 00:15:24]} 23.
Rcc1 {[%emt 00:00:10] [%clk 00:10:18]} Bb2 {[%emt 00:00:04] [%clk 00:15:28]} 0-1

[Site "Europe Echecs"]